[Event "Late-Titled-Tuesday-Blitz-June-04-2024"]
[Site "Chess.com"]
[Date "2024.06.04"]
[Round "9"]
[White "PotapovaM"]
[Black "scrambleyourbrain"]
[Result "1/2-1/2"]
[WhiteElo "2547"]
[BlackElo "2394"]
[TimeControl "180+1"]
[EndTime "15:42:19 PDT"]
[Termination "Game drawn by repetition"]

1. d4 {[%clk 0:03:00.9]} 1... Nf6 {[%clk 0:02:59.8]} 2. c4 {[%clk 0:03:00.6]}
2... e6 {[%clk 0:03:00.2]} 3. Nc3 {[%clk 0:03:00.3]} 3... Bb4 {[%clk 0:03:00.1]}
4. Qc2 {[%clk 0:02:53.9]} 4... O-O {[%clk 0:02:59.8]} 5. e4 {[%clk 0:02:52.6]}
5... d5 {[%clk 0:02:59.9]} 6. e5 {[%clk 0:02:49.5]} 6... Ne4 {[%clk 0:03:00]} 7.
Bd3 {[%clk 0:02:47.5]} 7... c5 {[%clk 0:02:59.7]} 8. Nf3 {[%clk 0:02:47.7]} 8...
cxd4 {[%clk 0:02:59.9]} 9. Nxd4 {[%clk 0:02:48.6]} 9... Nd7 {[%clk 0:03:00.1]}
10. Bf4 {[%clk 0:02:49.3]} 10... Qh4 {[%clk 0:02:59.7]} 11. g3 {[%clk
0:02:48.6]} 11... Qh5 {[%clk 0:03:00]} 12. h4 {[%clk 0:02:48.8]} 12... Nxe5
{[%clk 0:03:00.2]} 13. Be2 {[%clk 0:02:46.2]} 13... Ng4 {[%clk 0:03:00.3]} 14.
Bxg4 {[%clk 0:02:43.3]} 14... Qxg4 {[%clk 0:03:00.5]} 15. f3 {[%clk 0:02:43.9]}
15... Qh5 {[%clk 0:03:00.8]} 16. g4 {[%clk 0:02:44.4]} 16... Qg6 {[%clk
0:03:01]} 17. fxe4 {[%clk 0:02:43.6]} 17... e5 {[%clk 0:03:01.4]} 18. O-O-O
{[%clk 0:02:42.7]} 18... Bxc3 {[%clk 0:03:01.2]} 19. Nf5 {[%clk 0:02:41.5]}
19... Bxf5 {[%clk 0:02:54.8]} 20. gxf5 {[%clk 0:02:23]} 20... Qg4 {[%clk
0:02:51.7]} 21. Bh2 {[%clk 0:02:13.3]} 21... Bd4 {[%clk 0:02:46.9]} 22. exd5
{[%clk 0:02:06.5]} 22... Rac8 {[%clk 0:02:45.2]} 23. Kb1 {[%clk 0:01:47.5]}
23... b5 {[%clk 0:02:42.5]} 24. f6 {[%clk 0:00:47.7]} 24... Rxc4 {[%clk
0:02:35.2]} 25. Qd2 {[%clk 0:00:36.5]} 25... Qf5+ {[%clk 0:02:26.9]} 26. Ka1
{[%clk 0:00:36.6]} 26... Rc2 {[%clk 0:02:25.7]} 27. Qd3 {[%clk 0:00:31.3]} 27...
Qxd3 {[%clk 0:01:41.4]} 28. Rxd3 {[%clk 0:00:28.6]} 28... Bxb2+ {[%clk
0:01:39.8]} 29. Kb1 {[%clk 0:00:28.7]} 29... Rfc8 {[%clk 0:01:40.3]} 30. d6
{[%clk 0:00:24.5]} 30... Bd4 {[%clk 0:01:32.7]} 31. Rxd4 {[%clk 0:00:21.3]}
31... exd4 {[%clk 0:01:29.7]} 32. d7 {[%clk 0:00:21.3]} 32... gxf6 {[%clk
0:01:20]} 33. Re1 {[%clk 0:00:15]} 33... Kg7 {[%clk 0:01:03.5]} 34. Rg1+ {[%clk
0:00:12.2]} 34... Kh8 {[%clk 0:01:00.6]} 35. Re1 {[%clk 0:00:11.5]} 35... Kg7
{[%clk 0:01:00.4]} 36. Re8 {[%clk 0:00:07.3]} 36... Rc1+ {[%clk 0:00:59.8]} 37.
Kb2 {[%clk 0:00:07.6]} 37... R8c2+ {[%clk 0:00:59.7]} 38. Kb3 {[%clk 0:00:08]}
38... a5 {[%clk 0:00:59.6]} 39. d8=Q {[%clk 0:00:06.9]} 39... Rc3+ {[%clk
0:00:59.5]} 40. Kb2 {[%clk 0:00:06.4]} 40... R3c2+ {[%clk 0:01:00]} 41. Kb3
{[%clk 0:00:06.6]} 41... Rc3+ {[%clk 0:01:00.3]} 42. Kb2 {[%clk 0:00:07]} 42...
R3c2+ {[%clk 0:01:00.8]} 43. Kb3 {[%clk 0:00:06.5]} 1/2-1/2

[Event "Late-Titled-Tuesday-Blitz-June-04-2024"]
[Site "Chess.com"]
[Date "2024.06.04"]
[Round "9"]
[White "dasatcu90"]
[Black "garfield_pg"]
[Result "0-1"]
[WhiteElo "2260"]
[BlackElo "2469"]
[TimeControl "180+1"]
[EndTime "15:42:20 PDT"]
[Termination "garfield_pg won by resignation"]

1. d4 {[%clk 0:03:00.9]} 1... d5 {[%clk 0:02:59.7]} 2. Nf3 {[%clk 0:03:00.5]}
2... e6 {[%clk 0:02:59.9]} 3. g3 {[%clk 0:03:00]} 3... Nf6 {[%clk 0:02:59.3]} 4.
Bg2 {[%clk 0:03:00.2]} 4... b5 {[%clk 0:02:59.9]} 5. O-O {[%clk 0:02:59.5]} 5...
Bb7 {[%clk 0:03:00.4]} 6. a4 {[%clk 0:02:59]} 6... b4 {[%clk 0:03:00.6]} 7. a5
{[%clk 0:02:58]} 7... Be7 {[%clk 0:02:58.1]} 8. Nbd2 {[%clk 0:02:57.6]} 8... O-O
{[%clk 0:02:56.7]} 9. Nb3 {[%clk 0:02:57.8]} 9... Na6 {[%clk 0:02:57.4]} 10. h3
{[%clk 0:02:42.1]} 10... Rc8 {[%clk 0:02:52.3]} 11. Be3 {[%clk 0:02:31.5]} 11...
Ne4 {[%clk 0:02:44.5]} 12. Ne5 {[%clk 0:02:23.9]} 12... Nd6 {[%clk 0:02:38.4]}
13. Nd3 {[%clk 0:02:21.9]} 13... Nc4 {[%clk 0:02:38.5]} 14. Bc1 {[%clk
0:02:16.1]} 14... Bc6 {[%clk 0:02:33.4]} 15. Nbc5 {[%clk 0:02:10.3]} 15... Nxc5
{[%clk 0:02:29.4]} 16. dxc5 {[%clk 0:02:10.6]} 16... Rb8 {[%clk 0:02:19.1]} 17.
b3 {[%clk 0:02:10.5]} 17... Bf6 {[%clk 0:02:19.7]} 18. Ra2 {[%clk 0:02:04.5]}
18... Ne5 {[%clk 0:02:19.5]} 19. Bf4 {[%clk 0:01:57.9]} 19... Nd7 {[%clk
0:02:15]} 20. Bd2 {[%clk 0:01:49.4]} 20... Bc3 {[%clk 0:02:11.3]} 21. Bxc3
{[%clk 0:01:40.6]} 21... bxc3 {[%clk 0:02:12.2]} 22. e3 {[%clk 0:01:39.8]} 22...
Rb5 {[%clk 0:02:07.2]} 23. Qe1 {[%clk 0:01:36.1]} 23... Qf6 {[%clk 0:02:05.7]}
24. b4 {[%clk 0:01:29.7]} 24... Ne5 {[%clk 0:01:57]} 25. Qxc3 {[%clk 0:01:22.5]}
25... Nf3+ {[%clk 0:01:55.5]} 26. Bxf3 {[%clk 0:01:21.5]} 26... Qxc3 {[%clk
0:01:56.4]} 27. Rb1 {[%clk 0:01:10.1]} 27... Rfb8 {[%clk 0:01:51.2]} 28. Be2
{[%clk 0:00:56.8]} 28... f6 {[%clk 0:01:14.7]} 29. Kf1 {[%clk 0:00:56]} 29... d4
{[%clk 0:00:55.3]} 30. Rb3 {[%clk 0:00:47.8]} 30... Qd2 {[%clk 0:00:39.9]} 31.
exd4 {[%clk 0:00:48.2]} 31... Bd5 {[%clk 0:00:39.6]} 32. Rbb2 {[%clk 0:00:38.6]}
32... Bxa2 {[%clk 0:00:38.6]} 33. Rxa2 {[%clk 0:00:39.5]} 33... Qc3 {[%clk
0:00:29.2]} 34. Rb2 {[%clk 0:00:37.6]} 34... Qxd4 {[%clk 0:00:27.7]} 35. Ke1
{[%clk 0:00:33.3]} 35... Rxc5 {[%clk 0:00:22.6]} 36. bxc5 {[%clk 0:00:32]} 36...
Rxb2 {[%clk 0:00:22.7]} 37. Nxb2 {[%clk 0:00:32]} 37... Qxb2 {[%clk 0:00:23.6]}
0-1

[Event "Late-Titled-Tuesday-Blitz-June-04-2024"]
[Site "Chess.com"]
[Date "2024.06.04"]
[Round "9"]
[White "Fore_Man"]
[Black "egnfanclub"]
[Result "1-0"]
[WhiteElo "2245"]
[BlackElo "2342"]
[TimeControl "180+1"]
[EndTime "15:42:21 PDT"]
[Termination "Fore_Man won by resignation"]

1. Nf3 {[%clk 0:02:58.3]} 1... Nf6 {[%clk 0:02:59.8]} 2. g3 {[%clk 0:02:59.2]}
2... d5 {[%clk 0:02:59.6]} 3. Bg2 {[%clk 0:02:59.7]} 3... c5 {[%clk 0:03:00]} 4.
O-O {[%clk 0:03:00.4]} 4... Nc6 {[%clk 0:03:00.3]} 5. d4 {[%clk 0:03:00.9]} 5...
e6 {[%clk 0:03:00.3]} 6. dxc5 {[%clk 0:03:00.3]} 6... Bxc5 {[%clk 0:03:00.1]} 7.
c4 {[%clk 0:03:00.9]} 7... O-O {[%clk 0:02:52.3]} 8. cxd5 {[%clk 0:03:01.1]}
8... Nxd5 {[%clk 0:02:51.7]} 9. e4 {[%clk 0:03:00.8]} 9... Ndb4 {[%clk 0:02:40]}
10. Nc3 {[%clk 0:02:59.5]} 10... Nd3 {[%clk 0:02:33.9]} 11. Qe2 {[%clk 0:02:56]}
11... Nxc1 {[%clk 0:02:29.6]} 12. Raxc1 {[%clk 0:02:54.8]} 12... Nd4 {[%clk
0:02:25.2]} 13. Nxd4 {[%clk 0:02:54.5]} 13... Bxd4 {[%clk 0:02:26.1]} 14. Rfd1
{[%clk 0:02:54.7]} 14... Qf6 {[%clk 0:02:18.5]} 15. Qf3 {[%clk 0:02:03.7]} 15...
a6 {[%clk 0:01:54.9]} 16. Qxf6 {[%clk 0:01:54.2]} 16... Bxf6 {[%clk 0:01:55.8]}
17. f4 {[%clk 0:01:54.3]} 17... Rd8 {[%clk 0:01:48.9]} 18. e5 {[%clk 0:01:53.3]}
18... Be7 {[%clk 0:01:48.3]} 19. Ne4 {[%clk 0:01:53.7]} 19... Kf8 {[%clk
0:01:28.4]} 20. Nd6 {[%clk 0:01:44.4]} 20... Rb8 {[%clk 0:01:10]} 21. Rc7 {[%clk
0:01:33.7]} 21... Bxd6 {[%clk 0:01:00.5]} 22. exd6 {[%clk 0:01:34.6]} 22... Rd7
{[%clk 0:00:59.1]} 23. Bxb7 {[%clk 0:00:50.4]} 23... Rxc7 {[%clk 0:00:39.6]} 24.
dxc7 {[%clk 0:00:50.4]} 24... Rxb7 {[%clk 0:00:39.7]} 25. Rd8+ {[%clk 0:00:51]}
25... Ke7 {[%clk 0:00:40]} 26. Rxc8 {[%clk 0:00:51.9]} 26... Kd7 {[%clk
0:00:23.2]} 27. Rf8 {[%clk 0:00:49.8]} 27... Rxc7 {[%clk 0:00:21.7]} 28. Rxf7+
{[%clk 0:00:50]} 28... Kd6 {[%clk 0:00:22.4]} 29. Rxc7 {[%clk 0:00:48.2]} 29...
Kxc7 {[%clk 0:00:23.3]} 30. Kf2 {[%clk 0:00:48.8]} 30... Kd6 {[%clk 0:00:22.5]}
31. Ke3 {[%clk 0:00:49.2]} 31... Kd5 {[%clk 0:00:23.4]} 32. Kd3 {[%clk
0:00:49.2]} 32... h5 {[%clk 0:00:22.5]} 33. h4 {[%clk 0:00:44.3]} 33... g6
{[%clk 0:00:22.4]} 34. b4 {[%clk 0:00:42.6]} 34... e5 {[%clk 0:00:21.7]} 35.
fxe5 {[%clk 0:00:41.1]} 35... Kxe5 {[%clk 0:00:22.6]} 36. a4 {[%clk 0:00:41.4]}
36... Kd5 {[%clk 0:00:22.7]} 37. Ke3 {[%clk 0:00:36.2]} 37... Ke5 {[%clk
0:00:22.9]} 38. b5 {[%clk 0:00:35.7]} 38... axb5 {[%clk 0:00:22.7]} 39. axb5
{[%clk 0:00:35.7]} 39... Kd5 {[%clk 0:00:23.6]} 40. Kf4 {[%clk 0:00:35.9]} 1-0

[Event "Late-Titled-Tuesday-Blitz-June-04-2024"]
[Site "Chess.com"]
[Date "2024.06.04"]
[Round "9"]
[White "eljanov"]
[Black "Oleksandr_Bortnyk"]
[Result "0-1"]
[WhiteElo "2949"]
[BlackElo "3055"]
[TimeControl "180+1"]
[EndTime "15:42:22 PDT"]
[Termination "Oleksandr_Bortnyk won on time"]

1. d4 {[%clk 0:03:00.9]} 1... Nf6 {[%clk 0:02:59.4]} 2. c4 {[%clk 0:03:01]} 2...
b6 {[%clk 0:02:59.8]} 3. Nc3 {[%clk 0:02:59.6]} 3... Bb7 {[%clk 0:03:00.2]} 4.
a3 {[%clk 0:02:55.7]} 4... g6 {[%clk 0:03:00.1]} 5. d5 {[%clk 0:02:54.4]} 5...
Bg7 {[%clk 0:03:00.1]} 6. g3 {[%clk 0:02:52.4]} 6... O-O {[%clk 0:02:59]} 7. Bg2
{[%clk 0:02:52.7]} 7... Na6 {[%clk 0:02:59.6]} 8. Nf3 {[%clk 0:02:50]} 8... Nc5
{[%clk 0:03:00]} 9. O-O {[%clk 0:02:45.7]} 9... a5 {[%clk 0:03:00.5]} 10. Be3
{[%clk 0:02:46.1]} 10... Ne8 {[%clk 0:02:57.6]} 11. Bxc5 {[%clk 0:02:34.9]}
11... bxc5 {[%clk 0:02:58.5]} 12. e4 {[%clk 0:02:35.2]} 12... Ba6 {[%clk
0:02:57.4]} 13. Qd3 {[%clk 0:02:30.1]} 13... Rb8 {[%clk 0:02:56.7]} 14. Rab1
{[%clk 0:02:22.6]} 14... Nd6 {[%clk 0:02:56.9]} 15. b3 {[%clk 0:02:14.1]} 15...
e6 {[%clk 0:02:48.5]} 16. Rfe1 {[%clk 0:01:52.6]} 16... exd5 {[%clk 0:02:44.9]}
17. Nxd5 {[%clk 0:01:52.7]} 17... a4 {[%clk 0:02:43.9]} 18. e5 {[%clk
0:01:52.2]} 18... Nf5 {[%clk 0:02:26.1]} 19. bxa4 {[%clk 0:01:52]} 19... Rxb1
{[%clk 0:02:14.5]} 20. Rxb1 {[%clk 0:01:50.6]} 20... d6 {[%clk 0:02:07.4]} 21.
exd6 {[%clk 0:01:32.4]} 21... Nxd6 {[%clk 0:02:01.5]} 22. Nd2 {[%clk 0:01:29.9]}
22... Re8 {[%clk 0:01:53.9]} 23. a5 {[%clk 0:00:58.9]} 23... Bd4 {[%clk
0:01:51.8]} 24. Rc1 {[%clk 0:00:52.1]} 24... c6 {[%clk 0:01:48.5]} 25. Nb6
{[%clk 0:00:47.8]} 25... Nxc4 {[%clk 0:01:47.4]} 26. Bf1 {[%clk 0:00:19.3]}
26... Nxb6 {[%clk 0:01:35.3]} 27. Qxa6 {[%clk 0:00:18.8]} 27... Bxf2+ {[%clk
0:01:36]} 28. Kxf2 {[%clk 0:00:13.1]} 28... Qxd2+ {[%clk 0:01:36.9]} 29. Kg1
{[%clk 0:00:13.1]} 29... Nd5 {[%clk 0:01:25.7]} 30. Qxc6 {[%clk 0:00:08.2]}
30... Re7 {[%clk 0:00:53]} 31. Qxc5 {[%clk 0:00:07.8]} 31... Rc7 {[%clk
0:00:52.3]} 32. Qxc7 {[%clk 0:00:01.5]} 32... Qe3+ {[%clk 0:00:51.1]} 33. Kg2
{[%clk 0:00:01.2]} 33... Qd2+ {[%clk 0:00:40.4]} 34. Kg1 {[%clk 0:00:01.4]}
34... Nxc7 {[%clk 0:00:41.3]} 35. Rxc7 {[%clk 0:00:01.4]} 35... Qxa5 {[%clk
0:00:42]} 36. Rc8+ {[%clk 0:00:01]} 36... Kg7 {[%clk 0:00:42.6]} 0-1

[Event "Late-Titled-Tuesday-Blitz-June-04-2024"]
[Site "Chess.com"]
[Date "2024.06.04"]
[Round "9"]
[White "nabukatnezarr"]
[Black "Supelyel"]
[Result "1-0"]
[WhiteElo "2584"]
[BlackElo "2422"]
[TimeControl "180+1"]
[EndTime "15:42:30 PDT"]
[Termination "nabukatnezarr won by resignation"]

1. b3 {[%clk 0:03:00.9]} 1... e5 {[%clk 0:02:59.1]} 2. Bb2 {[%clk 0:03:01.8]}
2... d6 {[%clk 0:02:58.7]} 3. e3 {[%clk 0:03:01.6]} 3... Nd7 {[%clk 0:02:58.4]}
4. d4 {[%clk 0:03:01.6]} 4... c6 {[%clk 0:02:58.7]} 5. dxe5 {[%clk 0:03:00.9]}
5... dxe5 {[%clk 0:02:58.6]} 6. Nf3 {[%clk 0:03:00.6]} 6... Qc7 {[%clk
0:02:58.9]} 7. Be2 {[%clk 0:02:59.9]} 7... Ngf6 {[%clk 0:02:58.8]} 8. O-O {[%clk
0:03:00.1]} 8... Be7 {[%clk 0:02:59.4]} 9. Nbd2 {[%clk 0:02:57.2]} 9... b5
{[%clk 0:02:59.4]} 10. a4 {[%clk 0:02:57.2]} 10... Rb8 {[%clk 0:02:59.7]} 11.
axb5 {[%clk 0:02:56.7]} 11... cxb5 {[%clk 0:03:00.1]} 12. Ra2 {[%clk 0:02:56.4]}
12... a6 {[%clk 0:02:53.5]} 13. c4 {[%clk 0:02:55.8]} 13... O-O {[%clk
0:02:53.2]} 14. Qa1 {[%clk 0:02:55.3]} 14... Bd6 {[%clk 0:02:52.6]} 15. Rc1
{[%clk 0:02:54]} 15... b4 {[%clk 0:01:54]} 16. c5 {[%clk 0:02:51.5]} 16... Bxc5
{[%clk 0:01:35.9]} 17. Nxe5 {[%clk 0:02:44.8]} 17... Bb7 {[%clk 0:01:28.5]} 18.
Bf3 {[%clk 0:02:40.5]} 18... Bxf3 {[%clk 0:00:44.7]} 19. Ndxf3 {[%clk
0:02:41.4]} 19... Ne4 {[%clk 0:00:18.5]} 20. Qb1 {[%clk 0:01:55.3]} 20... f5
{[%clk 0:00:12]} 21. Nd3 {[%clk 0:01:51.4]} 21... Qd6 {[%clk 0:00:06.2]} 22. Bd4
{[%clk 0:01:41.1]} 22... Bxd4 {[%clk 0:00:06.2]} 23. Nxd4 {[%clk 0:01:42]} 23...
Rbc8 {[%clk 0:00:06.5]} 24. Rac2 {[%clk 0:01:01.2]} 24... Nc3 {[%clk 0:00:05.6]}
25. Qa1 {[%clk 0:00:59.2]} 25... f4 {[%clk 0:00:06.2]} 26. Nxf4 {[%clk
0:00:31.9]} 26... Rxf4 {[%clk 0:00:05.9]} 27. exf4 {[%clk 0:00:32.8]} 27... Qxd4
{[%clk 0:00:05.8]} 28. Qxa6 {[%clk 0:00:33.7]} 28... Nc5 {[%clk 0:00:05.9]} 29.
Qxc8+ {[%clk 0:00:30.9]} 29... Kf7 {[%clk 0:00:05.8]} 30. Qf5+ {[%clk
0:00:28.6]} 30... Ke7 {[%clk 0:00:05.8]} 31. Qe5+ {[%clk 0:00:27.1]} 31... Qxe5
{[%clk 0:00:05.5]} 32. fxe5 {[%clk 0:00:28]} 32... N5e4 {[%clk 0:00:05.3]} 33.
f3 {[%clk 0:00:26.4]} 1-0

[Event "Late-Titled-Tuesday-Blitz-June-04-2024"]
[Site "Chess.com"]
[Date "2024.06.04"]
[Round "9"]
[White "IngOscarArdila"]
[Black "Darkbluelord"]
[Result "1-0"]
[WhiteElo "2288"]
[BlackElo "2130"]
[TimeControl "180+1"]
[EndTime "15:42:32 PDT"]
[Termination "IngOscarArdila won by resignation"]

1. d4 {[%clk 0:02:59.8]} 1... c5 {[%clk 0:02:59.4]} 2. Nf3 {[%clk 0:02:59.3]}
2... cxd4 {[%clk 0:02:58.7]} 3. Nxd4 {[%clk 0:02:59.6]} 3... e5 {[%clk
0:02:59.1]} 4. Nb3 {[%clk 0:02:58.5]} 4... d5 {[%clk 0:02:59]} 5. e3 {[%clk
0:02:57.1]} 5... Be7 {[%clk 0:02:57.3]} 6. Be2 {[%clk 0:02:56.3]} 6... Nf6
{[%clk 0:02:57.3]} 7. O-O {[%clk 0:02:56.3]} 7... O-O {[%clk 0:02:57.5]} 8. Nc3
{[%clk 0:02:55.6]} 8... Nc6 {[%clk 0:02:55.8]} 9. Bd2 {[%clk 0:02:53.5]} 9...
Bf5 {[%clk 0:02:52]} 10. Bf3 {[%clk 0:02:53.1]} 10... e4 {[%clk 0:02:52]} 11.
Be2 {[%clk 0:02:52.2]} 11... a6 {[%clk 0:02:46.6]} 12. Nd4 {[%clk 0:02:51.8]}
12... Nxd4 {[%clk 0:02:45.9]} 13. exd4 {[%clk 0:02:51.9]} 13... Rc8 {[%clk
0:02:40.3]} 14. Bf4 {[%clk 0:02:50]} 14... Qb6 {[%clk 0:02:36.3]} 15. Na4 {[%clk
0:02:48.6]} 15... Qc6 {[%clk 0:02:36.3]} 16. Nc3 {[%clk 0:02:10]} 16... b5
{[%clk 0:02:34.7]} 17. a3 {[%clk 0:02:09]} 17... b4 {[%clk 0:02:35.1]} 18. axb4
{[%clk 0:02:07.9]} 18... Bxb4 {[%clk 0:02:36]} 19. Rxa6 {[%clk 0:02:05.2]} 19...
Qb7 {[%clk 0:02:27]} 20. Rxf6 {[%clk 0:01:54.4]} 20... gxf6 {[%clk 0:02:13.9]}
21. Bh6 {[%clk 0:01:51.1]} 21... Rfe8 {[%clk 0:02:14.1]} 22. Bg4 {[%clk
0:01:48.2]} 22... Qd7 {[%clk 0:02:01.4]} 23. Bxf5 {[%clk 0:01:41.8]} 23... Qxf5
{[%clk 0:01:58.3]} 24. Nxd5 {[%clk 0:01:37.3]} 24... Bf8 {[%clk 0:01:33.4]} 25.
Bxf8 {[%clk 0:01:31.7]} 25... Qxd5 {[%clk 0:01:25.4]} 26. Bh6 {[%clk 0:01:29.7]}
26... Kh8 {[%clk 0:01:24.5]} 27. b3 {[%clk 0:01:19.6]} 27... Rg8 {[%clk
0:01:24.2]} 28. c4 {[%clk 0:01:16.3]} 28... Qf5 {[%clk 0:01:23.5]} 29. Be3
{[%clk 0:01:14.5]} 29... Rb8 {[%clk 0:01:14.5]} 30. d5 {[%clk 0:01:11.1]} 30...
Qg4 {[%clk 0:01:09.7]} 31. Qxg4 {[%clk 0:01:10.3]} 31... Rxg4 {[%clk 0:01:09.5]}
32. Rb1 {[%clk 0:01:07.4]} 32... f5 {[%clk 0:00:53.3]} 33. c5 {[%clk 0:01:04.7]}
33... f4 {[%clk 0:00:53.1]} 34. Bd4+ {[%clk 0:01:04.3]} 34... Kg8 {[%clk
0:00:53.2]} 35. b4 {[%clk 0:00:58.1]} 35... Rg5 {[%clk 0:00:50.3]} 36. d6 {[%clk
0:00:56.9]} 36... Rd5 {[%clk 0:00:50.5]} 37. Bf6 {[%clk 0:00:51.3]} 37... e3
{[%clk 0:00:49]} 38. fxe3 {[%clk 0:00:50.4]} 38... fxe3 {[%clk 0:00:49]} 39. Kf1
{[%clk 0:00:44.8]} 39... Rf5+ {[%clk 0:00:48.7]} 40. Ke2 {[%clk 0:00:43.6]}
40... Rxf6 {[%clk 0:00:49.6]} 41. Kxe3 {[%clk 0:00:43.4]} 41... Rg6 {[%clk
0:00:46.5]} 42. g3 {[%clk 0:00:42.8]} 42... Rg4 {[%clk 0:00:45.6]} 43. c6 {[%clk
0:00:41]} 43... Rbxb4 {[%clk 0:00:36]} 44. Rxb4 {[%clk 0:00:39.4]} 44... Rxb4
{[%clk 0:00:35]} 45. d7 {[%clk 0:00:38.4]} 1-0

[Event "Late-Titled-Tuesday-Blitz-June-04-2024"]
[Site "Chess.com"]
[Date "2024.06.04"]
[Round "9"]
[White "Jahonas"]
[Black "LoonsDeKoeben"]
[Result "1-0"]
[WhiteElo "2438"]
[BlackElo "2290"]
[TimeControl "180+1"]
[EndTime "15:42:33 PDT"]
[Termination "Jahonas won by checkmate"]

1. e4 {[%clk 0:03:00.9]} 1... b6 {[%clk 0:02:59]} 2. Nc3 {[%clk 0:03:00.1]} 2...
Bb7 {[%clk 0:02:59.7]} 3. d4 {[%clk 0:02:59.3]} 3... e6 {[%clk 0:02:59.1]} 4.
Nf3 {[%clk 0:02:58.9]} 4... Nf6 {[%clk 0:02:58.5]} 5. Bd3 {[%clk 0:02:58.8]}
5... Bb4 {[%clk 0:02:58]} 6. Qe2 {[%clk 0:02:58.4]} 6... d5 {[%clk 0:02:57.8]}
7. e5 {[%clk 0:02:57.2]} 7... Ne4 {[%clk 0:02:58]} 8. Bd2 {[%clk 0:02:56.1]}
8... Bxc3 {[%clk 0:02:58.4]} 9. bxc3 {[%clk 0:02:54.4]} 9... c5 {[%clk
0:02:57.3]} 10. Bxe4 {[%clk 0:02:49.8]} 10... dxe4 {[%clk 0:02:57.3]} 11. Ng5
{[%clk 0:02:49.2]} 11... cxd4 {[%clk 0:02:55.5]} 12. Nxe4 {[%clk 0:02:45.8]}
12... O-O {[%clk 0:02:45]} 13. Nd6 {[%clk 0:02:41.4]} 13... dxc3 {[%clk
0:02:43.9]} 14. Bxc3 {[%clk 0:02:35.4]} 14... Ba6 {[%clk 0:02:43.2]} 15. Qe3
{[%clk 0:02:26.5]} 15... Nd7 {[%clk 0:02:37.4]} 16. h4 {[%clk 0:02:19]} 16...
Nc5 {[%clk 0:02:33]} 17. O-O-O {[%clk 0:02:14.6]} 17... Qc7 {[%clk 0:02:23.4]}
18. Rh3 {[%clk 0:02:02.4]} 18... Na4 {[%clk 0:01:45.5]} 19. Bd4 {[%clk
0:01:58.2]} 19... Rac8 {[%clk 0:01:38.7]} 20. Rd2 {[%clk 0:01:55]} 20... Rfd8
{[%clk 0:01:28.9]} 21. Rg3 {[%clk 0:01:52.8]} 21... g6 {[%clk 0:01:23.3]} 22. h5
{[%clk 0:01:46.4]} 22... Rxd6 {[%clk 0:01:20.5]} 23. hxg6 {[%clk 0:01:24.1]}
23... Rxd4 {[%clk 0:01:04.1]} 24. gxh7+ {[%clk 0:01:00.6]} 24... Kh8 {[%clk
0:01:02.7]} 25. Qg5 {[%clk 0:00:49.7]} 25... Qxc2+ {[%clk 0:00:38.1]} 26. Rxc2
{[%clk 0:00:49.1]} 26... Rxc2+ {[%clk 0:00:39]} 27. Kxc2 {[%clk 0:00:49]} 27...
Rc4+ {[%clk 0:00:39.4]} 28. Kd2 {[%clk 0:00:39.2]} 28... Rd4+ {[%clk 0:00:39.4]}
29. Ke1 {[%clk 0:00:31.6]} 29... Re4+ {[%clk 0:00:38.4]} 30. Re3 {[%clk
0:00:31.5]} 30... Rxe3+ {[%clk 0:00:38.3]} 31. fxe3 {[%clk 0:00:30.8]} 31...
Kxh7 {[%clk 0:00:37.1]} 32. Qh4+ {[%clk 0:00:28.5]} 32... Kg6 {[%clk 0:00:37.4]}
33. Qxa4 {[%clk 0:00:28.5]} 33... Bd3 {[%clk 0:00:37]} 34. Qxa7 {[%clk
0:00:28.3]} 34... b5 {[%clk 0:00:36.3]} 35. Qd4 {[%clk 0:00:27.9]} 35... Bc4
{[%clk 0:00:36.7]} 36. a4 {[%clk 0:00:27.7]} 36... Bd5 {[%clk 0:00:34.4]} 37.
axb5 {[%clk 0:00:27.1]} 37... Kf5 {[%clk 0:00:35.3]} 38. Qf4+ {[%clk 0:00:27]}
38... Kg6 {[%clk 0:00:35.5]} 39. g4 {[%clk 0:00:27.4]} 39... f5 {[%clk
0:00:32.7]} 40. exf6 {[%clk 0:00:27.2]} 40... Kf7 {[%clk 0:00:32.6]} 41. g5
{[%clk 0:00:27.2]} 41... Kg6 {[%clk 0:00:32.5]} 42. e4 {[%clk 0:00:27.4]} 42...
Bxe4 {[%clk 0:00:32.4]} 43. Qxe4+ {[%clk 0:00:27.4]} 43... Kf7 {[%clk
0:00:32.9]} 44. Qe5 {[%clk 0:00:26.1]} 44... Kg6 {[%clk 0:00:33.2]} 45. Qxe6
{[%clk 0:00:26.2]} 45... Kh7 {[%clk 0:00:33.3]} 46. Qf7+ {[%clk 0:00:24]} 46...
Kh8 {[%clk 0:00:33.1]} 47. Qg7# {[%clk 0:00:24.9]} 1-0

[Event "Late-Titled-Tuesday-Blitz-June-04-2024"]
[Site "Chess.com"]
[Date "2024.06.04"]
[Round "9"]
[White "Rodalquilar"]
[Black "denizozen"]
[Result "0-1"]
[WhiteElo "2788"]
[BlackElo "2939"]
[TimeControl "180+1"]
[EndTime "15:42:35 PDT"]
[Termination "denizozen won on time"]

1. d4 {[%clk 0:03:00.9]} 1... d5 {[%clk 0:03:00.2]} 2. Nf3 {[%clk 0:03:01]} 2...
Nf6 {[%clk 0:03:00.5]} 3. Bf4 {[%clk 0:03:00.9]} 3... Bf5 {[%clk 0:03:01.1]} 4.
e3 {[%clk 0:03:00.5]} 4... e6 {[%clk 0:03:01.5]} 5. Ne5 {[%clk 0:02:59.8]} 5...
h5 {[%clk 0:02:39.5]} 6. c4 {[%clk 0:02:33.5]} 6... Bxb1 {[%clk 0:02:38.3]} 7.
Qxb1 {[%clk 0:02:22.2]} 7... Bb4+ {[%clk 0:02:38.2]} 8. Kd1 {[%clk 0:02:22.7]}
8... c5 {[%clk 0:02:26.8]} 9. a3 {[%clk 0:02:17.4]} 9... Ba5 {[%clk 0:02:23.4]}
10. b4 {[%clk 0:02:17.8]} 10... cxb4 {[%clk 0:02:18.9]} 11. axb4 {[%clk
0:02:18.7]} 11... Bc7 {[%clk 0:02:19.1]} 12. c5 {[%clk 0:02:18.1]} 12... Ne4
{[%clk 0:02:18.2]} 13. Bb5+ {[%clk 0:02:00.3]} 13... Kf8 {[%clk 0:02:17.6]} 14.
Qb2 {[%clk 0:01:05]} 14... g5 {[%clk 0:01:51.9]} 15. f3 {[%clk 0:00:37.8]} 15...
gxf4 {[%clk 0:01:50.1]} 16. fxe4 {[%clk 0:00:38.1]} 16... dxe4 {[%clk
0:01:49.7]} 17. exf4 {[%clk 0:00:33.4]} 17... Bxe5 {[%clk 0:01:41.7]} 18. fxe5
{[%clk 0:00:33.5]} 18... Nc6 {[%clk 0:01:37.6]} 19. Bxc6 {[%clk 0:00:33.2]}
19... bxc6 {[%clk 0:01:38.5]} 20. Rf1 {[%clk 0:00:24.2]} 20... Qd5 {[%clk
0:01:32.3]} 21. g3 {[%clk 0:00:09]} 21... Qc4 {[%clk 0:01:15.6]} 22. Rf4 {[%clk
0:00:03.2]} 22... Rd8 {[%clk 0:01:13.1]} 23. Rxa7 {[%clk 0:00:03.1]} 23... Rxd4+
{[%clk 0:00:46.4]} 24. Ke1 {[%clk 0:00:03.2]} 24... f5 {[%clk 0:00:47.1]} 25.
exf6 {[%clk 0:00:02.9]} 25... Qd3 {[%clk 0:00:39.6]} 26. Ra8+ {[%clk 0:00:03.1]}
26... Kf7 {[%clk 0:00:40.2]} 27. Ra7+ {[%clk 0:00:03.5]} 27... Kg6 {[%clk
0:00:38]} 28. Rg7+ {[%clk 0:00:03.3]} 28... Kh6 {[%clk 0:00:38.4]} 29. Qc1
{[%clk 0:00:03.9]} 29... e3 {[%clk 0:00:34.4]} 30. Rf3 {[%clk 0:00:04.5]} 30...
Qd2+ {[%clk 0:00:26.1]} 31. Qxd2 {[%clk 0:00:04.9]} 31... exd2+ {[%clk 0:00:27]}
32. Kd1 {[%clk 0:00:05.5]} 32... Ra8 {[%clk 0:00:27.7]} 0-1